Workbook

Sheet Printen tarieven
B2: RICHTLIJN TARIEVEN (graaf) werkzaamheden TELECOM: | J2: 2016
B3: op basis van de bodemgesteldheid ten behoeve van de Algemene uitkering gemeentefonds. | L3: KOSTENSPECIFICATIE

Sheet Invoerblad tarieven
C1: Invoerscherm:
C2: Gegevens uit: Uitgave Reed Business Informatie Bouw & Infra.
D3: bijgewerkt dd : | E3: 2015-11-26
B4: Boekje: 1 | C4: GWW Kosten: | D4: uurtarieven en loonkosten*
D5: huidige tarief: | E5: in te voeren:
C6: Straatmaker groep D, inzittende werkbus, 5% ziekte | D6: =Moederblad!F9 -> 34.68 | E6: 34.68
C7: Straatmaker groep B, cauffeur werkbus, 5% ziekte | D7: =Moederblad!F10 -> 33 | E7: 33
C8: Transport , EVO berekening | D8: =Moederblad!F11 -> 9.14 | E8: 9.14
B10: Boekje 2: | C10: GWW Kosten: | D10: Funderingslagen en elementverhardingen
D11: huidige tarief: | E11: in te voeren:
C12: Straatstenen, gebakken
C13: Straatklinkers WF kwaliteit A4-12 tot en met 5000 stuks | D13: =Moederblad!I22 -> 485 | E13: 485
C14: Straatklinkers KK 80 kwaliteit A4-12 tot en met 5000 stuks | D14: =Moederblad!I23 -> 722 | E14: 722
C16: Straatstenen, beton:
C17: Betonstraatstenen KF, heide, 210 x 105 x 80 mm volle vracht | D17: =Moederblad!I24 -> 239 | E17: 239
C19: Tegels beton: | F19: * | G19: Bij een juiste invoer en acceptatie zijn de tarieven in de kolom: - huidige tarief en - in te voeren gelijk !!!
C20: Betontegels, 300 x 300 x 45mm komo, grijs | D20: =Moederblad!L22 -> 8.03 | E20: 8.03
C21: Betontegels, 300 x 300 x 80mm komo, grijs | D21: =Moederblad!L23 -> 11.55 | E21: 11.55
C23: Straatzand:
C24: Straatzand 10 - 25m3 | D24: =Moederblad!L24 -> 10.6 | E24: 10.6
B26: Boekje 3: | C26: GWW Kosten: | D26: Groenvoorzieningen
D27: huidige tarief: | E27: in te voeren:
C28: Uurtarief Cultuurtechnisch medewerker | D28: =Moederblad!F45 -> 29.59 | E28: 29.59
C29: Transport , EVO berekening | D29: =Moederblad!F46 -> 9.14 | E29: 9.14
C31: Graszaad, bermmengsel, tot 200kg | D31: =Moederblad!D55 -> 7.1 | E31: 7.1
C32: Graszaad, gazonmengsel, tot 200kg | D32: =Moederblad!D56 -> 7 | E32: 7

Sheet Moederblad
A2: RICHTLIJN TARIEVEN
I3: KOSTENSPECIFICATIE
A5: 1) UITVOERINGSKOSTEN | J5: wijzigd jaarlijks
A7: a) Ploegkosten per | B7: juli vorig jaar | F7: Per uur
A9: Straatmaker I | B9: groep D, Elsevier GWW Kosten | F9: ='Invoerblad tarieven'!E6 -> 34.68
A10: Straatmaker II | B10: groep B, Idem | F10: ='Invoerblad tarieven'!E7 -> 33
A11: Transport | B11: EVO-berekening | F11: ='Invoerblad tarieven'!E8 -> 9.14 | G11: incl.kraan
F12: --------------------+
F13: =SUM(F9:F11) -> 76.82
A14: Alg. kosten winst/risico aannemer | E14: =12/100 -> 0.12 | F14: =ROUND(E14*F13,2) -> 9.22
F15: ---------------------+
D16: TOTAAL per ploeguur | F16: =SUM(F13:F14) -> 86.04 | G16: TOTAAL per manuur | I16: =ROUND(F16/2,2) -> 43.02
A19: b) kosten materiaal | B19: juli vorig jaar | D19: kosten | E19: breuk | F19: reparatie | G19: KLINKERS | J19: TEGELS
A20: Incl. Magazijntoeslag | B20: =15/100 -> 0.15 | D20: per m2 | E20: in % | F20: per m2 | G20: materiaalverhouding per 1000 | J20: materiaalverhouding per m2
A22: K-Klinkers | B22: per m2 | D22: =((G22*I22/1000*100)+(G23*I23/1000*50)+(G24*I24/1000*44))*1.15 -> 26.71404 | E22: 0.05 | F22: =ROUND(E22*D22,2) -> 1.34 | G22: 0.2 | H22: waal | I22: ='Invoerblad tarieven'!E13 -> 485 | J22: 0.95 | K22: Dik 45 mm | L22: ='Invoerblad tarieven'!E20 -> 8.03
A23: T-Tegels | B23: per m2 | D23: =((J22*L22)+(J23*L23))*1.15 -> 9.4369 | E23: 0.05 | F23: =ROUND(E23*D23,2) -> 0.47 | G23: 0.2 | H23: kei | I23: ='Invoerblad tarieven'!E14 -> 722 | J23: 0.05 | K23: Dik 80 mm | L23: ='Invoerblad tarieven'!E21 -> 11.55
A24: Z-Zand | B24: per m3 | D24: =L24*(1+B20) -> 12.19 | E24: 0.05 | F24: =ROUND(E24*D24,2) -> 0.61 | G24: 0.6 | H24: beton | I24: ='Invoerblad tarieven'!E17 -> 239 | K24: Zand p/ m3 | L24: ='Invoerblad tarieven'!E24 -> 10.6
A26: c) kosten totaal
A27: kosten herstraten | D27: Reparatie- | E27: Kosten | F27: Uitvoerings-
A28: 1e herstel | D28: norm p/m2 | E28: manuur: | F28: kosten/m2 | H28: Gemiddelde toeslag
A29: (A+B) | D29: p/manuur | E29: =$I$16 -> 43.02 | F29: incl. | H29: i.v.m. verrekening
E30: per m2: | F30: materiaal | G30: incl. | H30: GATVERGROTING (m.u.v.tarief D)
A32: KLINKERS | B32: <15 m2 (lasgat) | D32: 0.51 | E32: =ROUND(D32*$I$16,2) -> 21.94 | F32: =ROUND((E32+F22+F24)*(1+H32),2) -> 28.67 | H32: 0.2 | I32: Prijzen materialen uit
A33: KLINKERS | B33: >15 m2 (geul) | D33: 0.41 | E33: 17.64 | F33: =ROUND((E33+F22+F24)*(1+H33),2) -> 23.51 | H33: 0.2 | I33: Elsevier GWW Kosten funderingslagen &
A34: KLINKERS | B34: >100 m2 (geul) | D34: 0.36 | E34: 15.49 | F34: =ROUND((E34+F22+F24)*(1+H34),2) -> 20.93 | H34: 0.2 | I34: elementenverhardingen
A35: TEGELS | B35: <15 m2 (lasgat) | D35: 0.41 | E35: 17.64 | F35: =ROUND((E35+F23+F24)*(1+H35),2) -> 22.46 | H35: 0.2
A36: TEGELS | B36: >15 m2 (geul) | D36: 0.31 | E36: 13.34 | F36: =ROUND((E36+F23+F24)*(1+H36),2) -> 17.3 | H36: 0.2
A37: TEGELS | B37: >100 m2 (geul) | D37: 0.29 | E37: 12.48 | F37: =ROUND((E37+F23+F24)*(1+H37),2) -> 16.27 | H37: 0.2
A38: TROTTOIRBAND | B38: (tegelmat.) | D38: 0.22 | E38: 9.46 | F38: =(E38+F23+F24) -> 10.54
A39: OPSLUITBAND | B39: (tegelmat.) | D39: 0.17 | E39: 7.31 | F39: =E39+F23+F24 -> 8.39
A40: ZAAI KLAAR MAKEN | B40: 100m2 berm, gazon | D40: =1.59 -> 1.59 | E40: =ROUND(D40/100*$F$51,2) -> 0.69 | F40: =((H55+H56)/2+E40)*1.5 -> 1.1536875 | H40: 0.5
A41: INZAAIEN | B41: 100m2 berm, gazon | D41: =0.945 -> 0.945 | E41: =ROUND(D41/100*$F$51,2) -> 0.41 | F41: =((H55+H56)/2+E41)*1.5 -> 0.7336875 | H41: 0.5
A43: kosten loon groen | B43: juli vorig jaar | F43: Per uur
A45: cultuurtechnisch medewerker | C45: Elsevier GWW Kosten | F45: ='Invoerblad tarieven'!E28 -> 29.59 | G45: (met 5% ziekteverzuim)
A46: Transport | C46: EVO-berekening | F46: ='Invoerblad tarieven'!E29 -> 9.14
F47: --------------------+
F48: =SUM(F45:F46) -> 38.73
A49: Alg. kosten winst/risico aannemer | E49: =12/100 -> 0.12 | F49: =ROUND(E49*F48,2) -> 4.65
F50: ---------------------+
D51: TOTAAL per manuur | F51: =SUM(F48:F49) -> 43.38
A53: kosten materiaal groen | D53: Zaad kosten | F53: gebruik | G53: kosten | H53: kosten | I53: Prijzen zaaimateriaal uit
D54: per kg | F54: kg/are | G54: per are | H54: per m2 | I54: Elsevier/ GWW Kosten/ Groenvoorzieningen
A55: Graszaad | B55: Bermmengsel | D55: ='Invoerblad tarieven'!E31 -> 7.1 | F55: 0.75 | G55: =D55*F55 -> 5.325 | H55: =G55/100 -> 0.05325
A56: Graszaad | B56: Gazonmengsel | D56: ='Invoerblad tarieven'!E32 -> 7 | F56: 1.5 | G56: =D56*F56 -> 10.5 | H56: =G56/100 -> 0.105
A59: 2) ONDERHOUD | E59: Percentage slechte grond
E61: <50% | F61: 50-60% | G61: 60-70% | H61: 70-80% | I61: >80% | J61: 5 categorieën van
J62: bodemgesteldheid
A63: na herstel in % van de totale uitvoeringskosten | J63: minder dan 50% slechte bodem
A64: RIJWEGEN | B64: (klinkers, tegels) | E64: 0.08 | F64: 0.09 | G64: 0.12 | H64: 0.18 | I64: 0.2 | J64: tussen 50-60% slechte bodem
A65: VOET-FIETSPADEN | B65: (tegels, klinkers) | E65: 0.05 | F65: 0.0575 | G65: 0.08 | H65: 0.1325 | I65: 0.15 | J65: tussen 60-70% slechte bodem
J66: tussen 70-80 slechte bodem
J67: meer dan 80% slechte bodem
A70: 3) DEGENERATIE | E70: Percentage slechte grond
E72: <50% | F72: 50-60% | G72: 60-70% | H72: 70-80% | I72: >80% | J72: 5 categorieën van
J73: bodemgesteldheid
A74: na herstel in % van de totale uitvoeringskosten | J74: minder dan 50% slechte bodem
A75: KLINKERS | B75: < 15 m2 (per lasgat) | E75: 0.32 | F75: 0.45 | G75: 0.84 | H75: 1.29 | I75: 1.58 | J75: tussen 50-60% slechte bodem
A76: KLINKERS | B76: > 15 m2 (per m1 geul) | E76: 0.13 | F76: 0.1825 | G76: 0.34 | H76: 0.6775 | I76: 0.79 | J76: tussen 60-70% slechte bodem
A77: TEGELS | B77: < 15 m2 (per lasgat) | E77: 0 | F77: 0.04 | G77: 0.16 | H77: 0.46 | I77: 0.56 | J77: tussen 70-80 slechte bodem
A78: TEGELS | B78: > 15 m2 (per m1 geul) | E78: 0 | F78: 0.01 | G78: 0.04 | H78: 0.49 | I78: 0.64 | J78: meer dan 80% slechte bodem

Sheet < 50% slechte bodem
A2: RICHTLIJN TARIEVEN (GRAAF)WERKZAAMHEDEN TELECOM | K2: Bijlage A1
I3: Tarievenblad
A5: 1. Gegevens gemeente:
A6: Bodemgesteldheid categorie: 1. | D6: Onderhoud | G6: Degeneratie | K6: Beheerskosten:
D7: factor | E7: rijweg | F7: voetpad | G7: Klinker: < 15 m2 | H7: Klinker: > 15 m2 | I7: Tegels: < 15 m2 | J7: Tegels: > 15 m2 | K7: algemeen
A9: minder dan 50% slechte bodem: | D9: 0 | E9: 0.08 | F9: 0.05 | G9: 0.32 | H9: 0.13 | I9: 0 | J9: 0 | K9: =6/100 -> 0.06
A11: 2. Overzicht kostenopbouw: | F11: Klinkers: | I11: Tegels:
F12: Rijweg | G12: =80/100 -> 0.8 | I12: Voetpad | J12: =95/100 -> 0.95
F13: Voetpad | G13: =20/100 -> 0.2 | I13: Rijweg | J13: =5/100 -> 0.05
F14: <15 m2 | G14: >15 m2 | H14: >100 m2 | I14: <15 m2 | J14: >15 m2 | K14: >100 m2
B15: 1. Uitvoering: | D15: per m2 | F15: =Moederblad!$F$32 -> 28.67 | G15: =Moederblad!$F$33 -> 23.51 | H15: =Moederblad!$F$34 -> 20.93 | I15: =Moederblad!$F$35 -> 22.46 | J15: =Moederblad!$F$36 -> 17.3 | K15: =Moederblad!$F$37 -> 16.27
B16: 2. Onderhoud: | D16: per m2 | F16: =ROUND($G$12*($E$9*F15)+$G$13*($F$9*$F$15),2) -> 2.12 | G16: =ROUND($G$12*($E$9*$G$15)+$G$13*($F$9*$G$15),2) -> 1.74 | H16: =ROUND($G$12*($E$9*$H$15)+$G$13*($F$9*$H$15),2) -> 1.55 | I16: =ROUND($J$12*($F$9*$I$15)+$J$13*($E$9*$I$15),2) -> 1.16 | J16: =ROUND($J$12*($F$9*$J$15)+$J$13*($E$9*$J$15),2) -> 0.89 | K16: =ROUND($J$12*($F$9*$K$15)+$J$13*($E$9*$K$15),2) -> 0.84
B17: 3a. Degeneratie: | D17: per reparatie | F17: =ROUND(($G$9*$F$15)/1.185,2) -> 7.74 | G17: -,-- | H17: -,-- | I17: =ROUND(($I$9*$I$15)/1.185,2) -> 0 | J17: -,-- | K17: -,--
B18: 3b. Degeneratie: | D18: per m1 sleuflengte | F18: -,-- | G18: =ROUND(($H$9*$G$15)/1.185,2) -> 2.58 | H18: =ROUND(($H$9*$H$15)/1.185,2) -> 2.3 | I18: -,-- | J18: =ROUND(($J$9*$J$15)/1.185,2) -> 0 | K18: =ROUND(($J$9*$K$15)/1.185,2) -> 0
B19: 4. Beheerskosten: | D19: per m2 | F19: =ROUND($K$9*$F$15,2) -> 1.72 | G19: =ROUND($K$9*$G$15,2) -> 1.41 | H19: =ROUND($K$9*$H$15,2) -> 1.26 | I19: =ROUND($K$9*$I$15,2) -> 1.35 | J19: =ROUND($K$9*$J$15,2) -> 1.04 | K19: =ROUND($K$9*$K$15,2) -> 0.98
A20: 3. Tarieven:
A21: Tarief: A. | B21: Herstel, onderhoud, uitgevoerd door wegbeheerder inclusief beheerskosten | H21: Degeneratie: | K21: Beheerskosten:
C23: A1 | D23: klinkers | E23: < 15 m2 | F23: =$F$15+$F$16 -> 30.79 | G23: per m2 | H23: + per reparatie | J23: =$F$17 -> 7.74 | K23: < 15 m2 | L23: =+$F$19 -> 1.72 | M23: per m2
C24: A2 | D24: tegels | E24: < 15 m2 | F24: =$I$15+$I$16 -> 23.62 | G24: per m2 | H24: + per reparatie | J24: =$I$17 -> 0 | K24: < 15 m2 | L24: =+$I$19 -> 1.35 | M24: per m2
C25: A3 | D25: klinkers | E25: > 15 m2 | F25: =$G$15+$G$16 -> 25.25 | G25: per m2 | H25: + per m1 sleuflengte | J25: =$G$18 -> 2.58 | K25: > 15 m2 | L25: =+$G$19 -> 1.41 | M25: per m2
C26: A4 | D26: tegels | E26: > 15 m2 | F26: =$J$15+$J$16 -> 18.19 | G26: per m2 | H26: + per m1 sleuflengte | J26: =$J$18 -> 0 | K26: > 15 m2 | L26: =+$J$19 -> 1.04 | M26: per m2
C27: A5 | D27: klinkers | E27: > 100 m2 | F27: =$H$15+$H$16 -> 22.48 | G27: per m2 | H27: + per m1 sleuflengte | J27: =$H$18 -> 2.3 | K27: > 100 m2 | L27: =+$H$19 -> 1.26 | M27: per m2
C28: A6 | D28: tegels | E28: > 100 m2 | F28: =$K$15+$K$16 -> 17.11 | G28: per m2 | H28: + per m1 sleuflengte | J28: =$K$18 -> 0 | K28: > 100 m2 | L28: =+$K$19 -> 0.98 | M28: per m2
A30: Tarief: B1. | B30: Herstel en onderhoud door de aanbieder ( 12 maanden garantie) | H30: Degeneratie: | K30: Beheerskosten:
C32: B1 | D32: klinkers | E32: < 15 m2 | F32: 0 | G32: per m2 | H32: + per reparatie | J32: =$F$17 -> 7.74 | K32: < 15 m2 | L32: =+$F$19 -> 1.72 | M32: per m2
C33: B2 | D33: tegels | E33: < 15 m2 | F33: 0 | G33: per m2 | H33: + per reparatie | J33: =$I$17 -> 0 | K33: < 15 m2 | L33: =+$I$19 -> 1.35 | M33: per m2
C34: B3 | D34: klinkers | E34: > 15 m2 | F34: 0 | G34: per m2 | H34: + per m1 sleuflengte | J34: =$G$18 -> 2.58 | K34: > 15 m2 | L34: =+$G$19 -> 1.41 | M34: per m2
C35: B4 | D35: tegels | E35: > 15 m2 | F35: 0 | G35: per m2 | H35: + per m1 sleuflengte | J35: =$J$18 -> 0 | K35: > 15 m2 | L35: =+$J$19 -> 1.04 | M35: per m2
A37: Tarief: B2. | B37: Herstel door de aanbieder (12 mnd.garantie) en onderhoud door wegbeheerder | H37: Degeneratie: | K37: Beheerskosten:
C39: B1 | D39: klinkers | E39: < 15 m2 | F39: =$F$16 -> 2.12 | G39: per m2 | H39: + per reparatie | J39: =$F$17 -> 7.74 | K39: < 15 m2 | L39: =+$F$19 -> 1.72 | M39: per m2
C40: B2 | D40: tegels | E40: < 15 m2 | F40: =$I$16 -> 1.16 | G40: per m2 | H40: + per reparatie | J40: =$I$17 -> 0 | K40: < 15 m2 | L40: =+$I$19 -> 1.35 | M40: per m2
C41: B3 | D41: klinkers | E41: > 15 m2 | F41: =$G$16 -> 1.74 | G41: per m2 | H41: + per m1 sleuflengte | J41: =$G$18 -> 2.58 | K41: > 15 m2 | L41: =+$G$19 -> 1.41 | M41: per m2
C42: B4 | D42: tegels | E42: > 15 m2 | F42: =$J$16 -> 0.89 | G42: per m2 | H42: + per m1 sleuflengte | J42: =$J$18 -> 0 | K42: > 15 m2 | L42: =+$J$19 -> 1.04 | M42: per m2
A44: Tarief: C. | B44: Herstel door de wegbeheerder voorafgaand aan gehele herbestrating. | H44: Beheerskosten:
C46: C1 | D46: klinkers | E46: < 15 m2 | F46: =($F$15/2)/1.2+$F$16 -> 14.06583333 | G46: per m2 | H46: < 15 m2 | I46: =+$F$19 -> 1.72 | J46: per m2
C47: C2 | D47: tegels | E47: < 15 m2 | F47: =($I$15/2)/1.2+$I$16 -> 10.51833333 | G47: per m2 | H47: < 15 m2 | I47: =+$I$19 -> 1.35 | J47: per m2
C48: C3 | D48: klinkers | E48: > 15 m2 | F48: =($G$15/2)/1.2+$G$16 -> 11.53583333 | G48: per m2 | H48: > 15 m2 | I48: =+$G$19 -> 1.41 | J48: per m2
C49: C4 | D49: tegels | E49: > 15 m2 | F49: =($J$15/2)/1.2+$J$16 -> 8.098333333 | G49: per m2 | H49: > 15 m2 | I49: =+$J$19 -> 1.04 | J49: per m2
A51: Tarief: D. | B51: Overige tarieven (herstel/onderhoud door wegbeheerder)
C53: D1 | D53: trottoirband | F53: =Moederblad!$F$38+($K$9*Moederblad!$F$38) -> 11.1724 | G53: per m1
C54: D2 | D54: opsluit-, koprolband | F54: =Moederblad!$F$39+($K$9*Moederblad!$F$39) -> 8.8934 | G54: per m1
C55: D3 | D55: berm / gazon < 50 m2 | F55: =(+$F$56*100)/2 -> 100.030875 | G55: / reparatie
C56: D4 | D56: berm / gazon > 50 m2 | F56: =+Moederblad!$F$40+Moederblad!$F$41+($K$9*(Moederblad!$F$40+Moederblad!$F$41)) -> 2.0006175 | G56: per m2
C57: D5 | D57: bomen en struiken | F57: werkelijke kosten
C58: D6 | D58: asfalt | F58: werkelijke kosten
A60: BTW is niet verschuldigd. Zie: Besluit van de Staatsecretaris van Financien dd 19 februari 2004, nr. CPP2003/3098M.
A61: Het tarief oppervlak (m2) straatwerk of berm wordt bepaaldt door vermeningvuldiging van lengte x breedte van de sleuf of lasgat ( gatvergroting zit in tarief)
A62: Per project is het aantal m2 op de straatwerkbon bepalend voor de toepassing van tarief <15 m2 of > 15 m2. Klinkers en tegels mogen niet bijelkaar worden opgeteld
A63: Meerdere kleine opbrekingen binnen 10 meter, aan één wegkant, worden aangemerkt als één reparatie.

Sheet 50-60% slechte bodem
A2: RICHTLIJN TARIEVEN (GRAAF)WERKZAAMHEDEN TELECOM | K2: Bijlage A2
I3: Tarievenblad
A5: 1. Gegevens gemeente:
A6: Bodemgesteldheid categorie: 2. | D6: Onderhoud | G6: Degeneratie | K6: Beheerskosten:
D7: factor | E7: rijweg | F7: voetpad | G7: Klinker: < 15 m2 | H7: Klinker: > 15 m2 | I7: Tegels: < 15 m2 | J7: Tegels: > 15 m2 | K7: algemeen
A9: 50 - 60% slechte bodem | D9: 0.25 | E9: 0.09 | F9: 0.0575 | G9: 0.45 | H9: 0.1825 | I9: 0.04 | J9: 0.01 | K9: =6/100 -> 0.06
A11: 2. Overzicht kostenopbouw: | F11: Klinkers: | I11: Tegels:
F12: Rijweg | G12: =80/100 -> 0.8 | I12: Voetpad | J12: =95/100 -> 0.95
F13: Voetpad | G13: =20/100 -> 0.2 | I13: Rijweg | J13: =5/100 -> 0.05
F14: <15 m2 | G14: >15 m2 | H14: >100 m2 | I14: <15 m2 | J14: >15 m2 | K14: >100 m2
B15: 1. Uitvoering: | D15: per m2 | F15: =Moederblad!$F$32 -> 28.67 | G15: =Moederblad!$F$33 -> 23.51 | H15: =Moederblad!$F$34 -> 20.93 | I15: =Moederblad!$F$35 -> 22.46 | J15: =Moederblad!$F$36 -> 17.3 | K15: =Moederblad!$F$37 -> 16.27
B16: 2. Onderhoud: | D16: per m2 | F16: =ROUND($G$12*($E$9*F15)+$G$13*($F$9*$F$15),2) -> 2.39 | G16: =ROUND($G$12*($E$9*$G$15)+$G$13*($F$9*$G$15),2) -> 1.96 | H16: =ROUND($G$12*($E$9*$H$15)+$G$13*($F$9*$H$15),2) -> 1.75 | I16: =ROUND($J$12*($F$9*$I$15)+$J$13*($E$9*$I$15),2) -> 1.33 | J16: =ROUND($J$12*($F$9*$J$15)+$J$13*($E$9*$J$15),2) -> 1.02 | K16: =ROUND($J$12*($F$9*$K$15)+$J$13*($E$9*$K$15),2) -> 0.96
B17: 3a. Degeneratie: | D17: per reparatie | F17: =ROUND(($G$9*$F$15)/1.185,2) -> 10.89 | G17: -,-- | H17: -,-- | I17: =ROUND(($I$9*$I$15)/1.185,2) -> 0.76 | J17: -,-- | K17: -,--
B18: 3b. Degeneratie: | D18: per m1 sleuflengte | F18: -,-- | G18: =ROUND(($H$9*$G$15)/1.185,2) -> 3.62 | H18: =ROUND(($H$9*$H$15)/1.185,2) -> 3.22 | I18: -,-- | J18: =ROUND(($J$9*$J$15)/1.185,2) -> 0.15 | K18: =ROUND(($J$9*$K$15)/1.185,2) -> 0.14
B19: 4. Beheerskosten: | D19: per m2 | F19: =ROUND($K$9*$F$15,2) -> 1.72 | G19: =ROUND($K$9*$G$15,2) -> 1.41 | H19: =ROUND($K$9*$H$15,2) -> 1.26 | I19: =ROUND($K$9*$I$15,2) -> 1.35 | J19: =ROUND($K$9*$J$15,2) -> 1.04 | K19: =ROUND($K$9*$K$15,2) -> 0.98
A20: 3. Tarieven:
A21: Tarief: A. | B21: Herstel, onderhoud, uitgevoerd door wegbeheerder inclusief beheerskosten | H21: Degeneratie: | K21: Beheerskosten:
C23: A1 | D23: klinkers | E23: < 15 m2 | F23: =$F$15+$F$16 -> 31.06 | G23: per m2 | H23: + per reparatie | J23: =$F$17 -> 10.89 | K23: < 15 m2 | L23: =+$F$19 -> 1.72 | M23: per m2
C24: A2 | D24: tegels | E24: < 15 m2 | F24: =$I$15+$I$16 -> 23.79 | G24: per m2 | H24: + per reparatie | J24: =$I$17 -> 0.76 | K24: < 15 m2 | L24: =+$I$19 -> 1.35 | M24: per m2
C25: A3 | D25: klinkers | E25: > 15 m2 | F25: =$G$15+$G$16 -> 25.47 | G25: per m2 | H25: + per m1 sleuflengte | J25: =$G$18 -> 3.62 | K25: > 15 m2 | L25: =+$G$19 -> 1.41 | M25: per m2
C26: A4 | D26: tegels | E26: > 15 m2 | F26: =$J$15+$J$16 -> 18.32 | G26: per m2 | H26: + per m1 sleuflengte | J26: =$J$18 -> 0.15 | K26: > 15 m2 | L26: =+$J$19 -> 1.04 | M26: per m2
C27: A5 | D27: klinkers | E27: > 100 m2 | F27: =$H$15+$H$16 -> 22.68 | G27: per m2 | H27: + per m1 sleuflengte | J27: =$H$18 -> 3.22 | K27: > 100 m2 | L27: =+$H$19 -> 1.26 | M27: per m2
C28: A6 | D28: tegels | E28: > 100 m2 | F28: =$K$15+$K$16 -> 17.23 | G28: per m2 | H28: + per m1 sleuflengte | J28: =$K$18 -> 0.14 | K28: > 100 m2 | L28: =+$K$19 -> 0.98 | M28: per m2
A30: Tarief: B1. | B30: Herstel en onderhoud door de aanbieder ( 12 maanden garantie) | H30: Degeneratie: | K30: Beheerskosten:
C32: B1 | D32: klinkers | E32: < 15 m2 | F32: 0 | G32: per m2 | H32: + per reparatie | J32: =$F$17 -> 10.89 | K32: < 15 m2 | L32: =+$F$19 -> 1.72 | M32: per m2
C33: B2 | D33: tegels | E33: < 15 m2 | F33: 0 | G33: per m2 | H33: + per reparatie | J33: =$I$17 -> 0.76 | K33: < 15 m2 | L33: =+$I$19 -> 1.35 | M33: per m2
C34: B3 | D34: klinkers | E34: > 15 m2 | F34: 0 | G34: per m2 | H34: + per m1 sleuflengte | J34: =$G$18 -> 3.62 | K34: > 15 m2 | L34: =+$G$19 -> 1.41 | M34: per m2
C35: B4 | D35: tegels | E35: > 15 m2 | F35: 0 | G35: per m2 | H35: + per m1 sleuflengte | J35: =$J$18 -> 0.15 | K35: > 15 m2 | L35: =+$J$19 -> 1.04 | M35: per m2
A37: Tarief: B2. | B37: Herstel door de aanbieder (12 mnd.garantie) en onderhoud door wegbeheerder | H37: Degeneratie: | K37: Beheerskosten:
C39: B1 | D39: klinkers | E39: < 15 m2 | F39: =$F$16 -> 2.39 | G39: per m2 | H39: + per reparatie | J39: =$F$17 -> 10.89 | K39: < 15 m2 | L39: =+$F$19 -> 1.72 | M39: per m2
C40: B2 | D40: tegels | E40: < 15 m2 | F40: =$I$16 -> 1.33 | G40: per m2 | H40: + per reparatie | J40: =$I$17 -> 0.76 | K40: < 15 m2 | L40: =+$I$19 -> 1.35 | M40: per m2
C41: B3 | D41: klinkers | E41: > 15 m2 | F41: =$G$16 -> 1.96 | G41: per m2 | H41: + per m1 sleuflengte | J41: =$G$18 -> 3.62 | K41: > 15 m2 | L41: =+$G$19 -> 1.41 | M41: per m2
C42: B4 | D42: tegels | E42: > 15 m2 | F42: =$J$16 -> 1.02 | G42: per m2 | H42: + per m1 sleuflengte | J42: =$J$18 -> 0.15 | K42: > 15 m2 | L42: =+$J$19 -> 1.04 | M42: per m2
A44: Tarief: C. | B44: Herstel door de wegbeheerder voorafgaand aan gehele herbestrating. | H44: Beheerskosten:
C46: C1 | D46: klinkers | E46: < 15 m2 | F46: =($F$15/2)/1.2+$F$16 -> 14.33583333 | G46: per m2 | H46: < 15 m2 | I46: =+$F$19 -> 1.72 | J46: per m2
C47: C2 | D47: tegels | E47: < 15 m2 | F47: =($I$15/2)/1.2+$I$16 -> 10.68833333 | G47: per m2 | H47: < 15 m2 | I47: =+$I$19 -> 1.35 | J47: per m2
C48: C3 | D48: klinkers | E48: > 15 m2 | F48: =($G$15/2)/1.2+$G$16 -> 11.75583333 | G48: per m2 | H48: > 15 m2 | I48: =+$G$19 -> 1.41 | J48: per m2
C49: C4 | D49: tegels | E49: > 15 m2 | F49: =($J$15/2)/1.2+$J$16 -> 8.228333333 | G49: per m2 | H49: > 15 m2 | I49: =+$J$19 -> 1.04 | J49: per m2
A51: Tarief: D. | B51: Overige tarieven (herstel/onderhoud door wegbeheerder)
C53: D1 | D53: trottoirband | F53: =Moederblad!$F$38+($K$9*Moederblad!$F$38) -> 11.1724 | G53: per m1
C54: D2 | D54: opsluit-, koprolband | F54: =Moederblad!$F$39+($K$9*Moederblad!$F$39) -> 8.8934 | G54: per m1
C55: D3 | D55: berm / gazon < 50 m2 | F55: =(+$F$56*100)/2 -> 100.030875 | G55: / reparatie
C56: D4 | D56: berm / gazon > 50 m2 | F56: =+Moederblad!$F$40+Moederblad!$F$41+($K$9*(Moederblad!$F$40+Moederblad!$F$41)) -> 2.0006175 | G56: per m2
C57: D5 | D57: bomen en struiken | F57: werkelijke kosten
C58: D6 | D58: asfalt | F58: werkelijke kosten
A60: BTW is niet verschuldigd. Zie: Besluit van de Staatsecretaris van Financien dd 19 februari 2004, nr. CPP2003/3098M.
A61: Het tarief oppervlak (m2) straatwerk of berm wordt bepaaldt door vermeningvuldiging van lengte x breedte van de sleuf of lasgat ( gatvergroting zit in tarief)
A62: Per project is het aantal m2 op de straatwerkbon bepalend voor de toepassing van tarief <15 m2 of > 15 m2. Klinkers en tegels mogen niet bijelkaar worden opgeteld
A63: Meerdere kleine opbrekingen binnen 10 meter, aan één wegkant, worden aangemerkt als één reparatie.

Sheet 60-70% slechte bodem
A2: RICHTLIJN TARIEVEN (GRAAF)WERKZAAMHEDEN TELECOM | K2: Bijlage A3
I3: Tarievenblad
A5: 1. Gegevens gemeente:
A6: Bodemgesteldheid categorie: 3. | D6: Onderhoud | G6: Degeneratie | K6: Beheerskosten:
D7: factor | E7: rijweg | F7: voetpad | G7: Klinker: < 15 m2 | H7: Klinker: > 15 m2 | I7: Tegels: < 15 m2 | J7: Tegels: > 15 m2 | K7: algemeen
A9: 60 - 70% slechte bodem | D9: 0.5 | E9: 0.12 | F9: 0.08 | G9: 0.84 | H9: 0.34 | I9: 0.16 | J9: 0.04 | K9: =6/100 -> 0.06
A11: 2. Overzicht kostenopbouw: | F11: Klinkers: | I11: Tegels:
F12: Rijweg | G12: =80/100 -> 0.8 | I12: Voetpad | J12: =95/100 -> 0.95
F13: Voetpad | G13: =20/100 -> 0.2 | I13: Rijweg | J13: =5/100 -> 0.05
F14: <15 m2 | G14: >15 m2 | H14: >100 m2 | I14: <15 m2 | J14: >15 m2 | K14: >100 m2
B15: 1. Uitvoering: | D15: per m2 | F15: =Moederblad!$F$32 -> 28.67 | G15: =Moederblad!$F$33 -> 23.51 | H15: =Moederblad!$F$34 -> 20.93 | I15: =Moederblad!$F$35 -> 22.46 | J15: =Moederblad!$F$36 -> 17.3 | K15: =Moederblad!$F$37 -> 16.27
B16: 2. Onderhoud: | D16: per m2 | F16: =ROUND($G$12*($E$9*F15)+$G$13*($F$9*$F$15),2) -> 3.21 | G16: =ROUND($G$12*($E$9*$G$15)+$G$13*($F$9*$G$15),2) -> 2.63 | H16: =ROUND($G$12*($E$9*$H$15)+$G$13*($F$9*$H$15),2) -> 2.34 | I16: =ROUND($J$12*($F$9*$I$15)+$J$13*($E$9*$I$15),2) -> 1.84 | J16: =ROUND($J$12*($F$9*$J$15)+$J$13*($E$9*$J$15),2) -> 1.42 | K16: =ROUND($J$12*($F$9*$K$15)+$J$13*($E$9*$K$15),2) -> 1.33
B17: 3a. Degeneratie: | D17: per reparatie | F17: =ROUND(($G$9*$F$15)/1.185,2) -> 20.32 | G17: -,-- | H17: -,-- | I17: =ROUND(($I$9*$I$15)/1.185,2) -> 3.03 | J17: -,-- | K17: -,--
B18: 3b. Degeneratie: | D18: per m1 sleuflengte | F18: -,-- | G18: =ROUND(($H$9*$G$15)/1.185,2) -> 6.75 | H18: =ROUND(($H$9*$H$15)/1.185,2) -> 6.01 | I18: -,-- | J18: =ROUND(($J$9*$J$15)/1.185,2) -> 0.58 | K18: =ROUND(($J$9*$K$15)/1.185,2) -> 0.55
B19: 4. Beheerskosten: | D19: per m2 | F19: =ROUND($K$9*$F$15,2) -> 1.72 | G19: =ROUND($K$9*$G$15,2) -> 1.41 | H19: =ROUND($K$9*$H$15,2) -> 1.26 | I19: =ROUND($K$9*$I$15,2) -> 1.35 | J19: =ROUND($K$9*$J$15,2) -> 1.04 | K19: =ROUND($K$9*$K$15,2) -> 0.98
A20: 3. Tarieven:
A21: Tarief: A. | B21: Herstel, onderhoud, uitgevoerd door wegbeheerder inclusief beheerskosten | H21: Degeneratie: | K21: Beheerskosten:
C23: A1 | D23: klinkers | E23: < 15 m2 | F23: =$F$15+$F$16 -> 31.88 | G23: per m2 | H23: + per reparatie | J23: =$F$17 -> 20.32 | K23: < 15 m2 | L23: =+$F$19 -> 1.72 | M23: per m2
C24: A2 | D24: tegels | E24: < 15 m2 | F24: =$I$15+$I$16 -> 24.3 | G24: per m2 | H24: + per reparatie | J24: =$I$17 -> 3.03 | K24: < 15 m2 | L24: =+$I$19 -> 1.35 | M24: per m2
C25: A3 | D25: klinkers | E25: > 15 m2 | F25: =$G$15+$G$16 -> 26.14 | G25: per m2 | H25: + per m1 sleuflengte | J25: =$G$18 -> 6.75 | K25: > 15 m2 | L25: =+$G$19 -> 1.41 | M25: per m2
C26: A4 | D26: tegels | E26: > 15 m2 | F26: =$J$15+$J$16 -> 18.72 | G26: per m2 | H26: + per m1 sleuflengte | J26: =$J$18 -> 0.58 | K26: > 15 m2 | L26: =+$J$19 -> 1.04 | M26: per m2
C27: A5 | D27: klinkers | E27: > 100 m2 | F27: =$H$15+$H$16 -> 23.27 | G27: per m2 | H27: + per m1 sleuflengte | J27: =$H$18 -> 6.01 | K27: > 100 m2 | L27: =+$H$19 -> 1.26 | M27: per m2
C28: A6 | D28: tegels | E28: > 100 m2 | F28: =$K$15+$K$16 -> 17.6 | G28: per m2 | H28: + per m1 sleuflengte | J28: =$K$18 -> 0.55 | K28: > 100 m2 | L28: =+$K$19 -> 0.98 | M28: per m2
A30: Tarief: B1. | B30: Herstel en onderhoud door de aanbieder ( 12 maanden garantie) | H30: Degeneratie: | K30: Beheerskosten:
C32: B1 | D32: klinkers | E32: < 15 m2 | F32: 0 | G32: per m2 | H32: + per reparatie | J32: =$F$17 -> 20.32 | K32: < 15 m2 | L32: =+$F$19 -> 1.72 | M32: per m2
C33: B2 | D33: tegels | E33: < 15 m2 | F33: 0 | G33: per m2 | H33: + per reparatie | J33: =$I$17 -> 3.03 | K33: < 15 m2 | L33: =+$I$19 -> 1.35 | M33: per m2
C34: B3 | D34: klinkers | E34: > 15 m2 | F34: 0 | G34: per m2 | H34: + per m1 sleuflengte | J34: =$G$18 -> 6.75 | K34: > 15 m2 | L34: =+$G$19 -> 1.41 | M34: per m2
C35: B4 | D35: tegels | E35: > 15 m2 | F35: 0 | G35: per m2 | H35: + per m1 sleuflengte | J35: =$J$18 -> 0.58 | K35: > 15 m2 | L35: =+$J$19 -> 1.04 | M35: per m2
A37: Tarief: B2. | B37: Herstel door de aanbieder (12 mnd.garantie) en onderhoud door wegbeheerder | H37: Degeneratie: | K37: Beheerskosten:
C39: B1 | D39: klinkers | E39: < 15 m2 | F39: =$F$16 -> 3.21 | G39: per m2 | H39: + per reparatie | J39: =$F$17 -> 20.32 | K39: < 15 m2 | L39: =+$F$19 -> 1.72 | M39: per m2
C40: B2 | D40: tegels | E40: < 15 m2 | F40: =$I$16 -> 1.84 | G40: per m2 | H40: + per reparatie | J40: =$I$17 -> 3.03 | K40: < 15 m2 | L40: =+$I$19 -> 1.35 | M40: per m2
C41: B3 | D41: klinkers | E41: > 15 m2 | F41: =$G$16 -> 2.63 | G41: per m2 | H41: + per m1 sleuflengte | J41: =$G$18 -> 6.75 | K41: > 15 m2 | L41: =+$G$19 -> 1.41 | M41: per m2
C42: B4 | D42: tegels | E42: > 15 m2 | F42: =$J$16 -> 1.42 | G42: per m2 | H42: + per m1 sleuflengte | J42: =$J$18 -> 0.58 | K42: > 15 m2 | L42: =+$J$19 -> 1.04 | M42: per m2
A44: Tarief: C. | B44: Herstel door de wegbeheerder voorafgaand aan gehele herbestrating. | H44: Beheerskosten:
C46: C1 | D46: klinkers | E46: < 15 m2 | F46: =($F$15/2)/1.2+$F$16 -> 15.15583333 | G46: per m2 | H46: < 15 m2 | I46: =+$F$19 -> 1.72 | J46: per m2
C47: C2 | D47: tegels | E47: < 15 m2 | F47: =($I$15/2)/1.2+$I$16 -> 11.19833333 | G47: per m2 | H47: < 15 m2 | I47: =+$I$19 -> 1.35 | J47: per m2
C48: C3 | D48: klinkers | E48: > 15 m2 | F48: =($G$15/2)/1.2+$G$16 -> 12.42583333 | G48: per m2 | H48: > 15 m2 | I48: =+$G$19 -> 1.41 | J48: per m2
C49: C4 | D49: tegels | E49: > 15 m2 | F49: =($J$15/2)/1.2+$J$16 -> 8.628333333 | G49: per m2 | H49: > 15 m2 | I49: =+$J$19 -> 1.04 | J49: per m2
A51: Tarief: D. | B51: Overige tarieven (herstel/onderhoud door wegbeheerder)
C53: D1 | D53: trottoirband | F53: =Moederblad!$F$38+($K$9*Moederblad!$F$38) -> 11.1724 | G53: per m1
C54: D2 | D54: opsluit-, koprolband | F54: =Moederblad!$F$39+($K$9*Moederblad!$F$39) -> 8.8934 | G54: per m1
C55: D3 | D55: berm / gazon < 50 m2 | F55: =(+$F$56*100)/2 -> 100.030875 | G55: / reparatie
C56: D4 | D56: berm / gazon > 50 m2 | F56: =+Moederblad!$F$40+Moederblad!$F$41+($K$9*(Moederblad!$F$40+Moederblad!$F$41)) -> 2.0006175 | G56: per m2
C57: D5 | D57: bomen en struiken | F57: werkelijke kosten
C58: D6 | D58: asfalt | F58: werkelijke kosten
A60: BTW is niet verschuldigd. Zie: Besluit van de Staatsecretaris van Financien dd 19 februari 2004, nr. CPP2003/3098M.
A61: Het tarief oppervlak (m2) straatwerk of berm wordt bepaaldt door vermeningvuldiging van lengte x breedte van de sleuf of lasgat ( gatvergroting zit in tarief)
A62: Per project is het aantal m2 op de straatwerkbon bepalend voor de toepassing van tarief <15 m2 of > 15 m2. Klinkers en tegels mogen niet bijelkaar worden opgeteld
A63: Meerdere kleine opbrekingen binnen 10 meter, aan één wegkant, worden aangemerkt als één reparatie.

Sheet 70-80% slechte bodem
A2: RICHTLIJN TARIEVEN (GRAAF)WERKZAAMHEDEN TELECOM | K2: Bijlage A4
I3: Tarievenblad
A5: 1. Gegevens gemeente:
A6: Bodemgesteldheid categorie: 4. | D6: Onderhoud | G6: Degeneratie | K6: Beheerskosten:
D7: factor | E7: rijweg | F7: voetpad | G7: Klinker: < 15 m2 | H7: Klinker: > 15 m2 | I7: Tegels: < 15 m2 | J7: Tegels: > 15 m2 | K7: algemeen
A9: 70 - 80% slechte bodem | D9: 0.75 | E9: 0.18 | F9: 0.1325 | G9: 1.29 | H9: 0.6775 | I9: 0.46 | J9: 0.49 | K9: =6/100 -> 0.06
A11: 2. Overzicht kostenopbouw: | F11: Klinkers: | I11: Tegels:
F12: Rijweg | G12: =80/100 -> 0.8 | I12: Voetpad | J12: =95/100 -> 0.95
F13: Voetpad | G13: =20/100 -> 0.2 | I13: Rijweg | J13: =5/100 -> 0.05
F14: <15 m2 | G14: >15 m2 | H14: >100 m2 | I14: <15 m2 | J14: >15 m2 | K14: >100 m2
B15: 1. Uitvoering: | D15: per m2 | F15: =Moederblad!$F$32 -> 28.67 | G15: =Moederblad!$F$33 -> 23.51 | H15: =Moederblad!$F$34 -> 20.93 | I15: =Moederblad!$F$35 -> 22.46 | J15: =Moederblad!$F$36 -> 17.3 | K15: =Moederblad!$F$37 -> 16.27
B16: 2. Onderhoud: | D16: per m2 | F16: =ROUND($G$12*($E$9*F15)+$G$13*($F$9*$F$15),2) -> 4.89 | G16: =ROUND($G$12*($E$9*$G$15)+$G$13*($F$9*$G$15),2) -> 4.01 | H16: =ROUND($G$12*($E$9*$H$15)+$G$13*($F$9*$H$15),2) -> 3.57 | I16: =ROUND($J$12*($F$9*$I$15)+$J$13*($E$9*$I$15),2) -> 3.03 | J16: =ROUND($J$12*($F$9*$J$15)+$J$13*($E$9*$J$15),2) -> 2.33 | K16: =ROUND($J$12*($F$9*$K$15)+$J$13*($E$9*$K$15),2) -> 2.19
B17: 3a. Degeneratie: | D17: per reparatie | F17: =ROUND(($G$9*$F$15)/1.185,2) -> 31.21 | G17: -,-- | H17: -,-- | I17: =ROUND(($I$9*$I$15)/1.185,2) -> 8.72 | J17: -,-- | K17: -,--
B18: 3b. Degeneratie: | D18: per m1 sleuflengte | F18: -,-- | G18: =ROUND(($H$9*$G$15)/1.185,2) -> 13.44 | H18: =ROUND(($H$9*$H$15)/1.185,2) -> 11.97 | I18: -,-- | J18: =ROUND(($J$9*$J$15)/1.185,2) -> 7.15 | K18: =ROUND(($J$9*$K$15)/1.185,2) -> 6.73
B19: 4. Beheerskosten: | D19: per m2 | F19: =ROUND($K$9*$F$15,2) -> 1.72 | G19: =ROUND($K$9*$G$15,2) -> 1.41 | H19: =ROUND($K$9*$H$15,2) -> 1.26 | I19: =ROUND($K$9*$I$15,2) -> 1.35 | J19: =ROUND($K$9*$J$15,2) -> 1.04 | K19: =ROUND($K$9*$K$15,2) -> 0.98
A20: 3. Tarieven:
A21: Tarief: A. | B21: Herstel, onderhoud, uitgevoerd door wegbeheerder inclusief beheerskosten | H21: Degeneratie: | K21: Beheerskosten:
C23: A1 | D23: klinkers | E23: < 15 m2 | F23: =$F$15+$F$16 -> 33.56 | G23: per m2 | H23: + per reparatie | J23: =$F$17 -> 31.21 | K23: < 15 m2 | L23: =+$F$19 -> 1.72 | M23: per m2
C24: A2 | D24: tegels | E24: < 15 m2 | F24: =$I$15+$I$16 -> 25.49 | G24: per m2 | H24: + per reparatie | J24: =$I$17 -> 8.72 | K24: < 15 m2 | L24: =+$I$19 -> 1.35 | M24: per m2
C25: A3 | D25: klinkers | E25: > 15 m2 | F25: =$G$15+$G$16 -> 27.52 | G25: per m2 | H25: + per m1 sleuflengte | J25: =$G$18 -> 13.44 | K25: > 15 m2 | L25: =+$G$19 -> 1.41 | M25: per m2
C26: A4 | D26: tegels | E26: > 15 m2 | F26: =$J$15+$J$16 -> 19.63 | G26: per m2 | H26: + per m1 sleuflengte | J26: =$J$18 -> 7.15 | K26: > 15 m2 | L26: =+$J$19 -> 1.04 | M26: per m2
C27: A5 | D27: klinkers | E27: > 100 m2 | F27: =$H$15+$H$16 -> 24.5 | G27: per m2 | H27: + per m1 sleuflengte | J27: =$H$18 -> 11.97 | K27: > 100 m2 | L27: =+$H$19 -> 1.26 | M27: per m2
C28: A6 | D28: tegels | E28: > 100 m2 | F28: =$K$15+$K$16 -> 18.46 | G28: per m2 | H28: + per m1 sleuflengte | J28: =$K$18 -> 6.73 | K28: > 100 m2 | L28: =+$K$19 -> 0.98 | M28: per m2
A30: Tarief: B1. | B30: Herstel en onderhoud door de aanbieder ( 12 maanden garantie) | H30: Degeneratie: | K30: Beheerskosten:
C32: B1 | D32: klinkers | E32: < 15 m2 | F32: 0 | G32: per m2 | H32: + per reparatie | J32: =$F$17 -> 31.21 | K32: < 15 m2 | L32: =+$F$19 -> 1.72 | M32: per m2
C33: B2 | D33: tegels | E33: < 15 m2 | F33: 0 | G33: per m2 | H33: + per reparatie | J33: =$I$17 -> 8.72 | K33: < 15 m2 | L33: =+$I$19 -> 1.35 | M33: per m2
C34: B3 | D34: klinkers | E34: > 15 m2 | F34: 0 | G34: per m2 | H34: + per m1 sleuflengte | J34: =$G$18 -> 13.44 | K34: > 15 m2 | L34: =+$G$19 -> 1.41 | M34: per m2
C35: B4 | D35: tegels | E35: > 15 m2 | F35: 0 | G35: per m2 | H35: + per m1 sleuflengte | J35: =$J$18 -> 7.15 | K35: > 15 m2 | L35: =+$J$19 -> 1.04 | M35: per m2
A37: Tarief: B2. | B37: Herstel door de aanbieder (12 mnd.garantie) en onderhoud door wegbeheerder | H37: Degeneratie: | K37: Beheerskosten:
C39: B1 | D39: klinkers | E39: < 15 m2 | F39: =$F$16 -> 4.89 | G39: per m2 | H39: + per reparatie | J39: =$F$17 -> 31.21 | K39: < 15 m2 | L39: =+$F$19 -> 1.72 | M39: per m2
C40: B2 | D40: tegels | E40: < 15 m2 | F40: =$I$16 -> 3.03 | G40: per m2 | H40: + per reparatie | J40: =$I$17 -> 8.72 | K40: < 15 m2 | L40: =+$I$19 -> 1.35 | M40: per m2
C41: B3 | D41: klinkers | E41: > 15 m2 | F41: =$G$16 -> 4.01 | G41: per m2 | H41: + per m1 sleuflengte | J41: =$G$18 -> 13.44 | K41: > 15 m2 | L41: =+$G$19 -> 1.41 | M41: per m2
C42: B4 | D42: tegels | E42: > 15 m2 | F42: =$J$16 -> 2.33 | G42: per m2 | H42: + per m1 sleuflengte | J42: =$J$18 -> 7.15 | K42: > 15 m2 | L42: =+$J$19 -> 1.04 | M42: per m2
A44: Tarief: C. | B44: Herstel door de wegbeheerder voorafgaand aan gehele herbestrating. | H44: Beheerskosten:
C46: C1 | D46: klinkers | E46: < 15 m2 | F46: =($F$15/2)/1.2+$F$16 -> 16.83583333 | G46: per m2 | H46: < 15 m2 | I46: =+$F$19 -> 1.72 | J46: per m2
C47: C2 | D47: tegels | E47: < 15 m2 | F47: =($I$15/2)/1.2+$I$16 -> 12.38833333 | G47: per m2 | H47: < 15 m2 | I47: =+$I$19 -> 1.35 | J47: per m2
C48: C3 | D48: klinkers | E48: > 15 m2 | F48: =($G$15/2)/1.2+$G$16 -> 13.80583333 | G48: per m2 | H48: > 15 m2 | I48: =+$G$19 -> 1.41 | J48: per m2
C49: C4 | D49: tegels | E49: > 15 m2 | F49: =($J$15/2)/1.2+$J$16 -> 9.538333333 | G49: per m2 | H49: > 15 m2 | I49: =+$J$19 -> 1.04 | J49: per m2
A51: Tarief: D. | B51: Overige tarieven (herstel/onderhoud door wegbeheerder)
C53: D1 | D53: trottoirband | F53: =Moederblad!$F$38+($K$9*Moederblad!$F$38) -> 11.1724 | G53: per m1
C54: D2 | D54: opsluit-, koprolband | F54: =Moederblad!$F$39+($K$9*Moederblad!$F$39) -> 8.8934 | G54: per m1
C55: D3 | D55: berm / gazon < 50 m2 | F55: =(+$F$56*100)/2 -> 100.030875 | G55: / reparatie
C56: D4 | D56: berm / gazon > 50 m2 | F56: =+Moederblad!$F$40+Moederblad!$F$41+($K$9*(Moederblad!$F$40+Moederblad!$F$41)) -> 2.0006175 | G56: per m2
C57: D5 | D57: bomen en struiken | F57: werkelijke kosten
C58: D6 | D58: asfalt | F58: werkelijke kosten
A60: BTW is niet verschuldigd. Zie: Besluit van de Staatsecretaris van Financien dd 19 februari 2004, nr. CPP2003/3098M.
A61: Het tarief oppervlak (m2) straatwerk of berm wordt bepaaldt door vermeningvuldiging van lengte x breedte van de sleuf of lasgat ( gatvergroting zit in tarief)
A62: Per project is het aantal m2 op de straatwerkbon bepalend voor de toepassing van tarief <15 m2 of > 15 m2. Klinkers en tegels mogen niet bijelkaar worden opgeteld
A63: Meerdere kleine opbrekingen binnen 10 meter, aan één wegkant, worden aangemerkt als één reparatie.

Sheet > 80% slechte bodem
A2: RICHTLIJN TARIEVEN (GRAAF)WERKZAAMHEDEN TELECOM | K2: Bijlage A5
I3: Tarievenblad
A5: 1. Gegevens gemeente:
A6: Bodemgesteldheid categorie: 5. | D6: Onderhoud | G6: Degeneratie | K6: Beheerskosten:
D7: factor | E7: rijweg | F7: voetpad | G7: Klinker: < 15 m2 | H7: Klinker: > 15 m2 | I7: Tegels: < 15 m2 | J7: Tegels: > 15 m2 | K7: algemeen
A9: meer dan 80% slechte bodem | D9: 1 | E9: 0.2 | F9: 0.15 | G9: 1.58 | H9: 0.79 | I9: 0.56 | J9: 0.64 | K9: =6/100 -> 0.06
A11: 2. Overzicht kostenopbouw: | F11: Klinkers: | I11: Tegels:
F12: Rijweg | G12: =80/100 -> 0.8 | I12: Voetpad | J12: =95/100 -> 0.95
F13: Voetpad | G13: =20/100 -> 0.2 | I13: Rijweg | J13: =5/100 -> 0.05
F14: <15 m2 | G14: >15 m2 | H14: >100 m2 | I14: <15 m2 | J14: >15 m2 | K14: >100 m2
B15: 1. Uitvoering: | D15: per m2 | F15: =Moederblad!$F$32 -> 28.67 | G15: =Moederblad!$F$33 -> 23.51 | H15: =Moederblad!$F$34 -> 20.93 | I15: =Moederblad!$F$35 -> 22.46 | J15: =Moederblad!$F$36 -> 17.3 | K15: =Moederblad!$F$37 -> 16.27
B16: 2. Onderhoud: | D16: per m2 | F16: =ROUND($G$12*($E$9*F15)+$G$13*($F$9*$F$15),2) -> 5.45 | G16: =ROUND($G$12*($E$9*$G$15)+$G$13*($F$9*$G$15),2) -> 4.47 | H16: =ROUND($G$12*($E$9*$H$15)+$G$13*($F$9*$H$15),2) -> 3.98 | I16: =ROUND($J$12*($F$9*$I$15)+$J$13*($E$9*$I$15),2) -> 3.43 | J16: =ROUND($J$12*($F$9*$J$15)+$J$13*($E$9*$J$15),2) -> 2.64 | K16: =ROUND($J$12*($F$9*$K$15)+$J$13*($E$9*$K$15),2) -> 2.48
B17: 3a. Degeneratie: | D17: per reparatie | F17: =ROUND(($G$9*$F$15)/1.185,2) -> 38.23 | G17: -,-- | H17: -,-- | I17: =ROUND(($I$9*$I$15)/1.185,2) -> 10.61 | J17: -,-- | K17: -,--
B18: 3b. Degeneratie: | D18: per m1 sleuflengte | F18: -,-- | G18: =ROUND(($H$9*$G$15)/1.185,2) -> 15.67 | H18: =ROUND(($H$9*$H$15)/1.185,2) -> 13.95 | I18: -,-- | J18: =ROUND(($J$9*$J$15)/1.185,2) -> 9.34 | K18: =ROUND(($J$9*$K$15)/1.185,2) -> 8.79
B19: 4. Beheerskosten: | D19: per m2 | F19: =ROUND($K$9*$F$15,2) -> 1.72 | G19: =ROUND($K$9*$G$15,2) -> 1.41 | H19: =ROUND($K$9*$H$15,2) -> 1.26 | I19: =ROUND($K$9*$I$15,2) -> 1.35 | J19: =ROUND($K$9*$J$15,2) -> 1.04 | K19: =ROUND($K$9*$K$15,2) -> 0.98
A20: 3. Tarieven:
A21: Tarief: A. | B21: Herstel, onderhoud, uitgevoerd door wegbeheerder inclusief beheerskosten | H21: Degeneratie: | K21: Beheerskosten:
C23: A1 | D23: klinkers | E23: < 15 m2 | F23: =$F$15+$F$16 -> 34.12 | G23: per m2 | H23: + per reparatie | J23: =$F$17 -> 38.23 | K23: < 15 m2 | L23: =+$F$19 -> 1.72 | M23: per m2
C24: A2 | D24: tegels | E24: < 15 m2 | F24: =$I$15+$I$16 -> 25.89 | G24: per m2 | H24: + per reparatie | J24: =$I$17 -> 10.61 | K24: < 15 m2 | L24: =+$I$19 -> 1.35 | M24: per m2
C25: A3 | D25: klinkers | E25: > 15 m2 | F25: =$G$15+$G$16 -> 27.98 | G25: per m2 | H25: + per m1 sleuflengte | J25: =$G$18 -> 15.67 | K25: > 15 m2 | L25: =+$G$19 -> 1.41 | M25: per m2
C26: A4 | D26: tegels | E26: > 15 m2 | F26: =$J$15+$J$16 -> 19.94 | G26: per m2 | H26: + per m1 sleuflengte | J26: =$J$18 -> 9.34 | K26: > 15 m2 | L26: =+$J$19 -> 1.04 | M26: per m2
C27: A5 | D27: klinkers | E27: > 100 m2 | F27: =$H$15+$H$16 -> 24.91 | G27: per m2 | H27: + per m1 sleuflengte | J27: =$H$18 -> 13.95 | K27: > 100 m2 | L27: =+$H$19 -> 1.26 | M27: per m2
C28: A6 | D28: tegels | E28: > 100 m2 | F28: =$K$15+$K$16 -> 18.75 | G28: per m2 | H28: + per m1 sleuflengte | J28: =$K$18 -> 8.79 | K28: > 100 m2 | L28: =+$K$19 -> 0.98 | M28: per m2
A30: Tarief: B1. | B30: Herstel en onderhoud door de aanbieder ( 12 maanden garantie) | H30: Degeneratie: | K30: Beheerskosten:
C32: B1 | D32: klinkers | E32: < 15 m2 | F32: 0 | G32: per m2 | H32: + per reparatie | J32: =$F$17 -> 38.23 | K32: < 15 m2 | L32: =+$F$19 -> 1.72 | M32: per m2
C33: B2 | D33: tegels | E33: < 15 m2 | F33: 0 | G33: per m2 | H33: + per reparatie | J33: =$I$17 -> 10.61 | K33: < 15 m2 | L33: =+$I$19 -> 1.35 | M33: per m2
C34: B3 | D34: klinkers | E34: > 15 m2 | F34: 0 | G34: per m2 | H34: + per m1 sleuflengte | J34: =$G$18 -> 15.67 | K34: > 15 m2 | L34: =+$G$19 -> 1.41 | M34: per m2
C35: B4 | D35: tegels | E35: > 15 m2 | F35: 0 | G35: per m2 | H35: + per m1 sleuflengte | J35: =$J$18 -> 9.34 | K35: > 15 m2 | L35: =+$J$19 -> 1.04 | M35: per m2
A37: Tarief: B2. | B37: Herstel door de aanbieder (12 mnd.garantie) en onderhoud door wegbeheerder | H37: Degeneratie: | K37: Beheerskosten:
C39: B1 | D39: klinkers | E39: < 15 m2 | F39: =$F$16 -> 5.45 | G39: per m2 | H39: + per reparatie | J39: =$F$17 -> 38.23 | K39: < 15 m2 | L39: =+$F$19 -> 1.72 | M39: per m2
C40: B2 | D40: tegels | E40: < 15 m2 | F40: =$I$16 -> 3.43 | G40: per m2 | H40: + per reparatie | J40: =$I$17 -> 10.61 | K40: < 15 m2 | L40: =+$I$19 -> 1.35 | M40: per m2
C41: B3 | D41: klinkers | E41: > 15 m2 | F41: =$G$16 -> 4.47 | G41: per m2 | H41: + per m1 sleuflengte | J41: =$G$18 -> 15.67 | K41: > 15 m2 | L41: =+$G$19 -> 1.41 | M41: per m2
C42: B4 | D42: tegels | E42: > 15 m2 | F42: =$J$16 -> 2.64 | G42: per m2 | H42: + per m1 sleuflengte | J42: =$J$18 -> 9.34 | K42: > 15 m2 | L42: =+$J$19 -> 1.04 | M42: per m2
A44: Tarief: C. | B44: Herstel door de wegbeheerder voorafgaand aan gehele herbestrating. | H44: Beheerskosten:
C46: C1 | D46: klinkers | E46: < 15 m2 | F46: =($F$15/2)/1.2+$F$16 -> 17.39583333 | G46: per m2 | H46: < 15 m2 | I46: =+$F$19 -> 1.72 | J46: per m2
C47: C2 | D47: tegels | E47: < 15 m2 | F47: =($I$15/2)/1.2+$I$16 -> 12.78833333 | G47: per m2 | H47: < 15 m2 | I47: =+$I$19 -> 1.35 | J47: per m2
C48: C3 | D48: klinkers | E48: > 15 m2 | F48: =($G$15/2)/1.2+$G$16 -> 14.26583333 | G48: per m2 | H48: > 15 m2 | I48: =+$G$19 -> 1.41 | J48: per m2
C49: C4 | D49: tegels | E49: > 15 m2 | F49: =($J$15/2)/1.2+$J$16 -> 9.848333333 | G49: per m2 | H49: > 15 m2 | I49: =+$J$19 -> 1.04 | J49: per m2
A51: Tarief: D. | B51: Overige tarieven (herstel/onderhoud door wegbeheerder)
C53: D1 | D53: trottoirband | F53: =Moederblad!$F$38+($K$9*Moederblad!$F$38) -> 11.1724 | G53: per m1
C54: D2 | D54: opsluit-, koprolband | F54: =Moederblad!$F$39+($K$9*Moederblad!$F$39) -> 8.8934 | G54: per m1
C55: D3 | D55: berm / gazon < 50 m2 | F55: =(+$F$56*100)/2 -> 100.030875 | G55: / reparatie
C56: D4 | D56: berm / gazon > 50 m2 | F56: =+Moederblad!$F$40+Moederblad!$F$41+($K$9*(Moederblad!$F$40+Moederblad!$F$41)) -> 2.0006175 | G56: per m2
C57: D5 | D57: bomen en struiken | F57: werkelijke kosten
C58: D6 | D58: asfalt | F58: werkelijke kosten
A60: BTW is niet verschuldigd. Zie: Besluit van de Staatsecretaris van Financien dd 19 februari 2004, nr. CPP2003/3098M.
A61: Het tarief oppervlak (m2) straatwerk of berm wordt bepaaldt door vermeningvuldiging van lengte x breedte van de sleuf of lasgat ( gatvergroting zit in tarief)
A62: Per project is het aantal m2 op de straatwerkbon bepalend voor de toepassing van tarief <15 m2 of > 15 m2. Klinkers en tegels mogen niet bijelkaar worden opgeteld
A63: Meerdere kleine opbrekingen binnen 10 meter, aan één wegkant, worden aangemerkt als één reparatie.
